bitfinex/quotes_BTCUSD_20240823
["timestamp","ask_amount","ask_price","bid_price","bid_amount"]
[1724383986880,0.08374648,60707.0,60706.0,1.8283107]
[1724383987085,0.08374648,60707.0,60706.0,1.8313107]
[1724383987086,0.08474648,60707.0,60706.0,1.8313107]
[1724383987431,0.08374648,60707.0,60706.0,1.8253107]
[1724383987809,0.08474648,60707.0,60706.0,1.8363107]
[1724383988337,0.08474648,60707.0,60706.0,1.83435145]
[1724383989173,0.08474648,60707.0,60706.0,1.8363107]
[1724383991033,0.08474648,60707.0,60706.0,1.83239613]
[1724383995153,0.08474648,60707.0,60706.0,2.1657667]
[1724383995360,0.08474648,60707.0,60706.0,1.8363107]
[1724383995536,0.08474648,60707.0,60706.0,1.9363107]
[1724383996764,0.08474648,60707.0,60706.0,1.93239613]
[1724384001187,0.08474648,60707.0,60706.0,2.01122187]
[1724384004707,0.08474648,60707.0,60706.0,2.01222187]
[1724384005012,0.08474648,60707.0,60706.0,2.01317719]
[1724384005213,0.08474648,60707.0,60706.0,2.01513644]
[1724384006713,0.08374648,60707.0,60706.0,2.00413644]
[1724384006843,0.08274648,60707.0,60706.0,2.00113644]
[1724384007031,0.08374648,60707.0,60706.0,2.01513644]
[1724384007227,0.08474648,60707.0,60706.0,2.01813644]
[1724384007452,0.08374648,60707.0,60706.0,2.00413644]
[1724384007657,0.08274648,60707.0,60706.0,2.00113644]
[1724384007863,0.08374648,60707.0,60706.0,2.00413644]
[1724384008915,0.08374648,60707.0,60706.0,2.01813644]
[1724384010038,0.08374648,60707.0,60706.0,2.34759244]
[1724384010252,0.08374648,60707.0,60706.0,2.01813644]
[1724384012580,0.08374648,60707.0,60706.0,2.34759244]
[1724384012987,0.08374648,60707.0,60706.0,2.01813644]
[1724384013885,0.08374648,60707.0,60706.0,2.01422187]
[1724384014089,0.08374648,60707.0,60706.0,2.01813644]
[1724384014488,0.08374648,60707.0,60706.0,2.01422187]
[1724384014723,0.08374648,60707.0,60706.0,2.01813644]
[1724384017175,0.08374648,60707.0,60706.0,2.01422187]
[1724384018374,0.08374648,60707.0,60706.0,1.93539613]
[1724384018576,0.08374648,60707.0,60706.0,2.01422187]
[1724384019455,0.08374648,60707.0,60706.0,2.01617719]
[1724384020623,0.08374648,60707.0,60706.0,2.01813644]
[1724384024361,0.08374648,60707.0,60706.0,2.06744273]
[1724384024768,0.08374648,60707.0,60706.0,2.1061067]
[1724384025185,0.08334996,60707.0,60706.0,2.1061067]
[1724384027428,0.08334996,60707.0,60706.0,2.13075985]
[1724384027631,0.08334996,60707.0,60706.0,2.10617427]
[1724384027835,0.08334996,60707.0,60706.0,2.06359573]
[1724384028042,0.08334996,60707.0,60706.0,2.01388602]
[1724384028281,0.08334996,60707.0,60706.0,2.01422187]
[1724384028602,0.08334996,60707.0,60706.0,2.06359573]
[1724384029367,0.08334996,60707.0,60706.0,2.08818131]
[1724384029576,0.08334996,60707.0,60706.0,2.01422187]
[1724384030209,0.08334996,60707.0,60706.0,2.45349582]
[1724384030407,0.08334996,60707.0,60706.0,2.37953638]
[1724384030608,0.08334996,60707.0,60706.0,2.45367168]
[1724384031007,0.08334996,60707.0,60706.0,2.37953638]
[1724384031485,0.08334996,60707.0,60706.0,2.47814897]
[1724384033078,0.08334996,60707.0,60706.0,2.37953638]
[1724384033520,0.08334996,60707.0,60706.0,2.47841296]
[1724384035199,0.08334996,60707.0,60706.0,2.37953638]
[1724384035443,0.08334996,60707.0,60706.0,2.47841919]
[1724384035697,0.08334996,60707.0,60706.0,2.37953638]
[1724384035906,0.08334996,60707.0,60706.0,2.47842015]
[1724384036059,0.08334996,60707.0,60706.0,2.37953638]
[1724384036258,0.08334996,60707.0,60706.0,2.01422187]
[1724384036460,0.08334996,60707.0,60706.0,2.3995952]
[1724384036663,0.08334996,60707.0,60706.0,2.37953447]
[1724384036911,0.08334996,60707.0,60706.0,2.47842036]
[1724384037258,0.08334996,60707.0,60706.0,2.37953447]
[1724384038011,0.08334996,60707.0,60706.0,2.50313863]
[1724384038346,0.08889527,60707.0,60706.0,2.50313863]
[1724384039024,0.08889527,60707.0,60706.0,2.37953447]
[1724384039207,0.08889527,60707.0,60706.0,2.38148979]
[1724384039408,0.08889527,60707.0,60706.0,2.50509395]
[1724384039792,0.08889527,60707.0,60706.0,2.5070532]
[1724384040387,0.08889527,60707.0,60706.0,2.50313863]
[1724384040602,0.08889527,60707.0,60706.0,2.50315053]
[1724384044166,0.08889527,60707.0,60706.0,2.50315744]
[1724384044383,0.08889527,60707.0,60706.0,2.4243317]
[1724384044589,0.08889527,60707.0,60706.0,2.50315744]
[1724384047259,0.08889527,60707.0,60706.0,2.50707201]
[1724384047939,0.08889527,60707.0,60706.0,2.83652801]
[1724384048324,0.08889527,60707.0,60706.0,2.7129031]
[1724384049054,0.08889527,60707.0,60706.0,2.71290108]
[1724384056173,0.08889527,60707.0,60706.0,2.77888408]
[1724384058033,0.08889527,60707.0,60706.0,2.77888407]
[1724384058447,0.08889527,60707.0,60706.0,2.7749695]
[1724384059602,0.08889527,60707.0,60706.0,2.4455135]
[1724384060144,0.08889527,60707.0,60706.0,2.3628135]
[1724384063157,0.08889527,60707.0,60706.0,2.36281507]
[1724384067429,0.08889527,60707.0,60706.0,2.48648504]
[1724384070619,0.08889527,60707.0,60706.0,2.36281507]
[1724384073616,0.08889527,60707.0,60706.0,2.44071507]
[1724384075451,0.08889527,60707.0,60706.0,2.77212639]
[1724384077229,0.08889527,60707.0,60706.0,2.77212361]
[1724384077610,0.08889527,60707.0,60706.0,2.44462686]
[1724384077811,0.08889527,60707.0,60706.0,2.54770878]
[1724384078185,0.08889527,60707.0,60706.0,2.72140878]
[1724384078406,0.08889527,60707.0,60706.0,2.54379421]
[1724384078660,0.08889527,60707.0,60706.0,2.44071229]
[1724384079102,0.08889527,60707.0,60706.0,2.44171229]
[1724384079341,0.08889527,60707.0,60706.0,2.44071229]
[1724384086576,0.08889527,60707.0,60706.0,2.44070217]
[1724384089652,0.08889527,60707.0,60706.0,2.36280217]
[1724384100580,0.08889527,60707.0,60706.0,2.36280511]
[1724384102466,0.08889527,60707.0,60706.0,2.46588591]
[1724384102663,0.08889527,60707.0,60706.0,2.29890511]
[1724384105890,0.08889527,60707.0,60706.0,2.22007937]
[1724384106142,0.23419527,60707.0,60706.0,1.57478766]
[1724384106341,0.23419527,60707.0,60706.0,1.60414887]
[1724384106746,0.23319527,60707.0,60706.0,1.60114887]
[1724384106922,0.23319527,60707.0,60706.0,1.58714887]
[1724384107119,0.23419527,60707.0,60706.0,1.61514887]
[1724384107707,0.23319527,60707.0,60706.0,1.58714887]
[1724384108190,0.23319527,60707.0,60706.0,1.60114887]
[1724384108395,0.23379875,60707.0,60706.0,1.61514887]
[1724384108625,0.23279875,60707.0,60706.0,1.60114887]
[1724384109234,0.23279875,60707.0,60706.0,1.58714887]
[1724384109629,0.23279875,60707.0,60706.0,1.60114887]
[1724384109847,0.15084531,60707.0,60706.0,1.60114887]
[1724384110055,0.15184531,60707.0,60706.0,1.61514887]
[1724384110271,0.15184531,60707.0,60706.0,1.60114887]
[1724384110610,0.15184531,60707.0,60706.0,1.61514887]
[1724384110899,0.15084531,60707.0,60706.0,1.60114887]
[1724384111127,0.15184531,60707.0,60706.0,1.61514887]
[1724384113973,0.08654531,60707.0,60706.0,1.61514887]
[1724384114181,0.16886531,60707.0,60706.0,1.61514887]
[1724384114749,0.16968831,60707.0,60706.0,1.61514887]
[1724384119328,0.16968831,60707.0,60706.0,1.94460487]
[1724384119506,0.23408831,60707.0,60706.0,1.94460487]
[1724384121368,0.23408831,60707.0,60706.0,1.84460487]
[1724384123111,0.23408831,60707.0,60706.0,1.43532313]
[1724384125603,0.16968831,60707.0,60706.0,1.43532313]
[1724384126647,0.16968831,60707.0,60706.0,1.51414887]
[1724384131386,0.23408831,60707.0,60706.0,1.51414887]
[1724384136083,0.23408831,60707.0,60706.0,0.6120723]
[1724384137199,0.23408831,60707.0,60706.0,0.61240815]
[1724384138012,0.23408831,60707.0,60706.0,0.6120723]
[1724384138240,0.23408831,60707.0,60706.0,0.61240815]
[1724384138598,0.23408831,60707.0,60706.0,0.6120723]
[1724384138822,0.23408831,60707.0,60706.0,0.61240815]
[1724384140172,0.23408831,60707.0,60706.0,0.94186415]
[1724384141700,0.16968831,60707.0,60706.0,0.9415283]
[1724384141844,0.16968831,60707.0,60706.0,0.94186415]
[1724384143498,0.19551742,60707.0,60706.0,0.94186415]
[1724384145414,0.19551742,60707.0,60706.0,1.00256415]
[1724384145415,0.11551742,60707.0,60706.0,1.00256415]
[1724384145843,0.11551742,60707.0,60706.0,0.94186415]
[1724384147254,0.25681742,60707.0,60706.0,0.94186415]
[1724384147457,0.25681742,60707.0,60706.0,0.9415283]
[1724384148286,0.25681742,60707.0,60706.0,0.5460893]
[1724384148484,0.25681742,60707.0,60706.0,0.5230893]
[1724384149486,0.25581742,60707.0,60706.0,0.5090893]
[1724384150035,0.25581742,60707.0,60706.0,0.1796333]
[1724384150240,0.25581742,60707.0,60706.0,0.1656333]
[1724384150424,0.25581742,60707.0,60706.0,0.0009053]
[1724384150425,0.42054242,60707.0,60706.0,0.0009053]
[1724384150776,0.25581742,60707.0,60706.0,0.0149053]
[1724384151587,0.25681742,60707.0,60706.0,0.0279053]
[1724384152750,0.75099342,60707.0,60706.0,0.0279053]
[1724384152948,0.82981916,60707.0,60706.0,0.0279053]
[1724384153147,0.3061173,60707.0,60706.0,0.0279053]
[1724384153413,0.4708423,60707.0,60706.0,0.0279053]
[1724384153630,0.8002933,60707.0,60706.0,0.0279053]
[1724384153817,0.8002933,60707.0,60706.0,0.0139053]
[1724384154240,0.8002933,60707.0,60706.0,0.0169053]
[1724384154594,0.8002933,60707.0,60706.0,0.0139053]
[1724384154974,0.8002933,60707.0,60706.0,0.0019053]
[1724384154975,0.74999342,60707.0,60706.0,0.0019053]
[1724384155437,0.74999342,60707.0,60706.0,0.0039053]
[1724384155643,0.74999342,60707.0,60706.0,0.0019053]
[1724384156061,0.75299342,60707.0,60706.0,0.0019053]
[1724384156469,0.75299342,60707.0,60706.0,0.0009053]
[1724384157769,0.75499342,60707.0,60706.0,0.0009053]
[1724384161182,0.80425342,60707.0,60706.0,0.0009053]
[1724384161987,0.26081742,60707.0,60706.0,0.0009053]
[1724384162941,0.19781742,60707.0,60706.0,0.1656333]
[1724384163140,0.19781742,60707.0,60706.0,0.49542515]
[1724384163352,0.19781742,60707.0,60706.0,0.4950893]
[1724384163753,0.19581742,60707.0,60706.0,0.4950893]
[1724384164175,0.19481742,60707.0,60706.0,0.4950893]
[1724384164607,0.19581742,60707.0,60706.0,0.4950893]
[1724384164811,0.19281742,60707.0,60706.0,0.4950893]
[1724384165006,0.19281742,60707.0,60706.0,0.4960893]
[1724384165628,0.16698831,60707.0,60706.0,0.1666333]
[1724384166025,0.16698831,60707.0,60706.0,0.1686333]
[1724384166453,0.16698831,60707.0,60706.0,0.1666333]
[1724384166807,0.16698831,60707.0,60706.0,0.1676333]
[1724384167282,0.16698831,60707.0,60706.0,0.1666333]
[1724384169015,0.19281944,60707.0,60706.0,0.1656333]
[1724384169230,0.19281944,60707.0,60706.0,0.1666333]
[1724384169417,0.19281944,60707.0,60706.0,0.1686333]
[1724384171623,0.19281944,60707.0,60706.0,0.0039053]
[1724384172798,0.19281944,60707.0,60706.0,0.0019053]
[1724384172921,0.19281944,60707.0,60706.0,0.0029053]
[1724384173277,0.68699544,60707.0,60706.0,0.0029053]
[1724384173484,0.68699544,60707.0,60706.0,0.0019053]
[1724384173676,0.75259544,60707.0,60706.0,0.0019053]
[1724384174083,0.68699544,60707.0,60706.0,0.0019053]
[1724384175583,0.69099544,60707.0,60706.0,0.0019053]
[1724384175809,0.69099544,60707.0,60706.0,0.0009053]
[1724384176121,0.69399544,60707.0,60706.0,0.0009053]
[1724384176604,0.69099544,60707.0,60706.0,0.0009053]
[1724384176817,0.68699544,60707.0,60706.0,0.0009053]
[1724384177146,0.69399544,60707.0,60706.0,0.0009053]
[1724384177320,0.17078709,60707.0,60706.0,0.0009053]
[1724384177525,0.12151944,60707.0,60706.0,0.0009053]
[1724384177749,0.30888709,60707.0,60706.0,0.0009053]
[1724384178109,0.47361209,60707.0,60706.0,0.0009053]
[1724384178397,0.47361568,60707.0,60706.0,0.0009053]
[1724384179473,0.80306668,60707.0,60706.0,0.0009053]
[1724384181803,1.13252061,60707.0,60706.0,0.0009053]
[1724384185268,1.15715769,60707.0,60706.0,0.0009053]
[1724384185472,1.08324644,60707.0,60706.0,0.0009053]
[1724384186351,0.69099544,60707.0,60706.0,0.0009053]
[1724384189933,0.61569544,60707.0,60706.0,0.0009053]
[1724384190355,0.7142318,60707.0,60706.0,0.0009053]
[1724384191635,0.61569544,60707.0,60706.0,0.0009053]
[1724384193269,0.7142318,60707.0,60706.0,0.0009053]
[1724384194339,1.0436828,60707.0,60706.0,0.0009053]
[1724384194467,0.7142318,60707.0,60706.0,0.0009053]
[1724384195275,0.61569544,60707.0,60706.0,0.0009053]
[1724384195694,0.73891362,60707.0,60706.0,0.0009053]
[1724384198009,1.14806462,60707.0,60706.0,0.0009053]
[1724384199744,0.81861362,60707.0,60706.0,0.0009053]
[1724384200381,0.8186177,60707.0,60706.0,0.0009053]
[1724384200580,1.1480687,60707.0,60706.0,0.0009053]
[1724384200951,0.8186177,60707.0,60706.0,0.0009053]
[1724384201300,0.69539544,60707.0,60706.0,0.0009053]
[1724384202318,0.61569544,60707.0,60706.0,0.0009053]
[1724384207577,0.71425504,60707.0,60706.0,0.0009053]
[1724384208197,0.61569544,60707.0,60706.0,0.0009053]
[1724384213376,0.73887503,60707.0,60706.0,0.0009053]
[1724384214534,0.73891841,60707.0,60706.0,0.0009053]
[1724384214762,1.76729031,60707.0,60706.0,0.0009053]
[1724384214953,1.80865521,60707.0,60706.0,0.0009053]
[1724384215156,1.78282408,60707.0,60706.0,0.0009053]
[1724384215361,1.94906607,60707.0,60706.0,0.0009053]
[1724384215579,2.11227508,60707.0,60706.0,0.0009053]
[1724384215801,2.10927508,60707.0,60706.0,0.0009053]
[1724384216021,2.11227508,60707.0,60706.0,0.0009053]
[1724384216198,2.03344934,60707.0,60706.0,0.0009053]
[1724384216414,2.10927508,60707.0,60706.0,0.0009053]
[1724384216953,2.03044934,60707.0,60706.0,0.0009053]
[1724384217171,2.10927508,60707.0,60706.0,0.0009053]
[1724384217340,2.10527508,60707.0,60706.0,0.0009053]
[1724384217661,2.11127508,60707.0,60706.0,0.0019053]
[1724384218486,2.14211164,60707.0,60706.0,0.0019053]
[1724384218703,2.30812323,60707.0,60706.0,0.0019053]
[1724384218876,2.30418171,60707.0,60706.0,0.0019053]
[1724384219279,2.30413881,60707.0,60706.0,0.0019053]
[1724384220298,2.22531307,60707.0,60706.0,0.0019053]
[1724384220498,2.13816945,60707.0,60706.0,0.0019053]
[1724384220757,2.1355053,60707.0,60706.0,0.0019053]
[1724384220910,2.13816945,60707.0,60706.0,0.0019053]
[1724384221109,2.1355053,60707.0,60706.0,0.0019053]
[1724384221432,1.80871845,60707.0,60706.0,0.0019053]
[1724384221633,1.7420543,60707.0,60706.0,0.0019053]
[1724384221997,0.94915187,60707.0,60706.0,0.0661053]
[1724384222446,0.74263399,60707.0,60706.0,0.0661053]
[1724384222640,0.74263399,60707.0,60706.0,0.1419053]
[1724384223456,0.84263399,60707.0,60706.0,0.1419053]
[1724384224064,0.84263332,60707.0,60706.0,0.1419053]
[1724384224267,0.74263332,60707.0,60706.0,0.1419053]
[1724384224465,0.61970087,60707.0,60706.0,0.1419053]
[1724384224681,0.94915187,60707.0,60706.0,0.0661053]
[1724384227066,0.36400203,60707.0,60706.0,0.1441053]
[1724384227333,0.69345303,60707.0,60706.0,0.1441053]
[1724384227802,0.61970087,60707.0,60706.0,0.1441053]
[1724384228646,0.66886916,60707.0,60706.0,0.1441053]
[1724384228819,0.61970087,60707.0,60706.0,0.1441053]
[1724384230431,0.69345303,60707.0,60706.0,0.1441053]
[1724384230668,0.61970087,60707.0,60706.0,0.1441053]
[1724384231075,0.66887345,60707.0,60706.0,0.1441053]
[1724384231593,0.66887404,60707.0,60706.0,0.1441053]
[1724384232209,0.66887415,60707.0,60706.0,0.1441053]
[1724384234654,0.61970087,60707.0,60706.0,0.1441053]
[1724384234868,0.66887409,60707.0,60706.0,0.1441053]
[1724384236205,0.66887455,60707.0,60706.0,0.1441053]
[1724384236737,0.61970087,60707.0,60706.0,0.1441053]
[1724384237279,0.66887474,60707.0,60706.0,0.1441053]
[1724384237979,0.61970087,60707.0,60706.0,0.1441053]
[1724384238411,0.66887596,60707.0,60706.0,0.1441053]
[1724384238631,0.61970087,60707.0,60706.0,0.1441053]
[1724384238834,0.66887581,60707.0,60706.0,0.1441053]
[1724384239021,0.61970087,60707.0,60706.0,0.1441053]
[1724384239424,0.66887663,60707.0,60706.0,0.1441053]
[1724384239797,0.61970087,60707.0,60706.0,0.1441053]
[1724384239993,0.66887663,60707.0,60706.0,0.1441053]
[1724384240423,0.66887755,60707.0,60706.0,0.1441053]
[1724384240778,0.61970087,60707.0,60706.0,0.1441053]
[1724384241508,0.69346756,60707.0,60706.0,0.1441053]
[1724384241713,0.69346756,60707.0,60706.0,0.0661053]
[1724384241966,0.61970087,60707.0,60706.0,0.0661053]
[1724384243297,0.69346756,60707.0,60706.0,0.0661053]
[1724384243879,1.1017443,60707.0,60706.0,0.0019053]
[1724384244104,1.2428443,60707.0,60706.0,0.0019053]
[1724384244295,1.5722953,60707.0,60706.0,0.0019053]
[1724384244835,1.5107953,60707.0,60706.0,0.0019053]
[1724384245247,1.48495874,60707.0,60706.0,0.0019053]
[1724384245622,1.48496081,60707.0,60706.0,0.0019053]
[1724384248115,1.07590981,60707.0,60706.0,0.0019053]
[1724384248328,0.99708407,60707.0,60706.0,0.0679053]
[1724384248528,1.10174259,60707.0,60706.0,0.0679053]
[1724384249725,1.10174007,60707.0,60706.0,0.0679053]
[1724384252708,1.10134355,60707.0,60706.0,0.0679053]
[1724384253960,1.02757731,60707.0,60706.0,0.0679053]
[1724384254377,1.10134355,60707.0,60706.0,0.0679053]
[1724384254955,1.10134928,60707.0,60706.0,0.0679053]
[1724384255768,1.02252354,60707.0,60706.0,0.0679053]
[1724384261406,0.94875157,60707.0,60706.0,0.0679053]
[1724384262392,1.0471142,60707.0,60706.0,0.0679053]
[1724384263352,0.76955534,60707.0,60706.0,0.0679053]
[1724384263536,0.93428034,60707.0,60706.0,0.0679053]
[1724384263739,1.09200608,60707.0,60706.0,0.0019053]
[1724384264341,1.01818552,60707.0,60706.0,0.0019053]
[1724384265183,0.99235274,60707.0,60706.0,0.0019053]
[1724384265379,1.09078016,60707.0,60706.0,0.0019053]
[1724384265587,1.11530603,60707.0,60706.0,0.0019053]
[1724384266011,0.99235274,60707.0,60706.0,0.0019053]
[1724384268563,1.01818537,60707.0,60706.0,0.0019053]
[1724384270683,1.34763637,60707.0,60706.0,0.0019053]
[1724384271280,1.01818537,60707.0,60706.0,0.0019053]
[1724384271672,1.34763637,60707.0,60706.0,0.0019053]
[1724384272573,1.01818537,60707.0,60706.0,0.0019053]
[1724384272733,1.01918537,60707.0,60706.0,0.0019053]
[1724384272932,1.34863637,60707.0,60706.0,0.0019053]
[1724384273328,1.3924005,60707.0,60706.0,0.0019053]
[1724384273718,1.39300682,60707.0,60706.0,0.0019053]
[1724384274402,1.39034267,60707.0,60706.0,0.0019053]
[1724384275698,1.39134267,60707.0,60706.0,0.0019053]
[1724384275895,1.39034267,60707.0,60706.0,0.0019053]
[1724384276070,1.49629683,60707.0,60706.0,0.0019053]
[1724384276272,1.53835977,60707.0,60706.0,0.0019053]
[1724384276479,1.39052512,60707.0,60706.0,0.0019053]
[1724384277913,1.53835162,60707.0,60706.0,0.0019053]
[1724384278059,1.39052512,60707.0,60706.0,0.0019053]
[1724384278480,1.39016152,60707.0,60706.0,0.0019053]
[1724384281177,1.53797997,60707.0,60706.0,0.0019053]
[1724384281343,1.34845937,60707.0,60706.0,0.0019053]
[1724384281512,1.39031486,60707.0,60706.0,0.0019053]
[1724384281915,1.3898288,60707.0,60706.0,0.0019053]
[1724384282715,1.3109288,60707.0,60706.0,0.0019053]
[1724384283188,1.3109288,60707.0,60706.0,0.0664053]
[1724384284551,1.41737104,60707.0,60706.0,0.0664053]
[1724384285344,1.4590881,60707.0,60706.0,0.0664053]
[1724384286360,1.41737104,60707.0,60706.0,0.0664053]
[1724384286560,0.94010837,60707.0,60706.0,0.0664053]
[1724384286798,1.087916,60707.0,60706.0,0.0664053]
[1724384287152,1.417367,60707.0,60706.0,0.0664053]
[1724384287328,1.087916,60707.0,60706.0,0.0664053]
[1724384290732,0.94010837,60707.0,60706.0,0.0664053]
[1724384294415,1.13086743,60707.0,60706.0,0.0664053]
[1724384296155,0.9830598,60707.0,60706.0,0.0664053]
[1724384296536,1.13090502,60707.0,60706.0,0.0664053]
[1724384297132,0.9830598,60707.0,60706.0,0.0664053]
[1724384298300,1.3125108,60707.0,60706.0,0.0664053]
[1724384298520,0.9830598,60707.0,60706.0,0.0664053]
[1724384299167,1.08795302,60707.0,60706.0,0.0664053]
[1724384299479,0.98234937,60707.0,60706.0,0.0664053]
[1724384300840,0.98205424,60707.0,60706.0,0.0664053]
[1724384303599,0.98211468,60707.0,60706.0,0.0664053]
[1724384304149,0.94010837,60707.0,60706.0,0.0664053]
[1724384304350,1.0879961,60707.0,60706.0,0.0664053]
[1724384309210,0.98277967,60707.0,60706.0,0.0664053]
[1724384309330,1.08277967,60707.0,60706.0,0.0019053]
[1724384312379,1.23072785,60707.0,60706.0,0.0019053]
[1724384312582,1.23072704,60707.0,60706.0,0.0643053]
[1724384313371,1.23072704,60707.0,60706.0,0.1443053]
[1724384313570,0.03765563,60707.0,60706.0,0.14464115]
[1724384313815,0.20238063,60707.0,60706.0,0.14464115]
[1724384314229,0.03765563,60707.0,60706.0,0.14464115]
[1724384314602,0.20238063,60707.0,60706.0,0.14464115]
[1724384316276,0.32562179,60707.0,60706.0,0.14464115]
[1724384316660,0.32562179,60707.0,60706.0,0.1443053]
[1724384317466,0.65507279,60707.0,60706.0,0.1443053]
[1724384319751,0.65505803,60707.0,60706.0,0.1443053]
[1724384322880,0.65505803,60707.0,60706.0,0.14464115]
[1724384323277,0.53183163,60707.0,60706.0,0.14464115]
[1724384325709,0.65505803,60707.0,60706.0,0.1443053]
[1724384326116,0.53183163,60707.0,60706.0,0.1443053]
[1724384328532,0.65505803,60707.0,60706.0,0.1443053]
[1724384329565,0.98450903,60707.0,60706.0,0.1443053]
[1724384330019,0.98450903,60707.0,60706.0,0.0643053]
[1724384330230,0.93988263,60707.0,60706.0,0.0019053]
[1724384330629,0.86128263,60707.0,60706.0,0.0019053]
[1724384338866,0.86128263,60707.0,60706.0,0.0624053]
[1724384340209,0.86128263,60707.0,60706.0,0.0019053]
[1724384340440,0.94448263,60707.0,60706.0,0.0019053]
[1724384340644,0.94448263,60707.0,60706.0,0.00183742]
[1724384341593,0.86128263,60707.0,60706.0,0.00183742]
[1724384342000,0.86128263,60707.0,60706.0,0.06233742]
[1724384342554,0.86128263,60707.0,60706.0,0.13873742]
[1724384344402,0.86128263,60707.0,60706.0,0.06233742]
[1724384349158,0.86128263,60707.0,60706.0,0.00183742]
[1724384349361,1.26583363,60707.0,60706.0,0.00183742]
[1724384349574,1.31007514,60707.0,60706.0,0.00183742]
[1724384350305,1.47218691,60707.0,60706.0,0.00183742]
[1724384350506,1.31007514,60707.0,60706.0,0.00183742]
[1724384351263,1.33866221,60707.0,60706.0,0.00183742]
[1724384351598,1.19073363,60707.0,60706.0,0.06363742]
[1724384355665,0.86128263,60707.0,60706.0,0.06363742]
[1724384358955,0.86128263,60707.0,60705.0,0.0009053]
[1724384358956,1.95120944,60706.0,60705.0,0.0009053]
[1724384360676,1.96020944,60706.0,60705.0,0.0009053]
[1724384362020,1.96020944,60706.0,60705.0,0.0646053]
[1724384363274,2.28966544,60706.0,60705.0,0.0646053]
[1724384364028,2.28966544,60706.0,60705.0,0.0009053]
[1724384366199,2.43066544,60706.0,60705.0,0.0009053]
[1724384367098,2.37046544,60706.0,60705.0,0.0009053]
[1724384367860,2.28966544,60706.0,60705.0,0.0009053]
[1724384369155,2.31549773,60706.0,60705.0,0.0009053]
[1724384370277,0.85847229,60706.0,60705.0,0.0009053]
[1724384371082,1.00640087,60706.0,60705.0,0.0009053]
[1724384373536,0.85847229,60706.0,60705.0,0.0009053]
[1724384378114,1.00640087,60706.0,60705.0,0.0009053]
[1724384379643,1.00722387,60706.0,60705.0,0.0009053]
[1724384380003,1.00730651,60706.0,60705.0,0.0009053]
[1724384380177,1.33676251,60706.0,60705.0,0.0009053]
[1724384380540,1.37963491,60706.0,60705.0,0.0009053]
[1724384380739,1.23162695,60706.0,60705.0,0.0009053]
[1724384381167,1.36732695,60706.0,60705.0,0.0009053]
[1724384383961,1.53132993,60706.0,60705.0,0.0009053]
[1724384384089,1.73828187,60706.0,60705.0,0.0009053]
[1724384384306,1.73579785,60706.0,60705.0,0.0009053]
[1724384385890,2.06525385,60706.0,60705.0,0.0009053]
[1724384386001,2.06625385,60706.0,60705.0,0.0009053]
[1724384386407,1.58449113,60706.0,60705.0,0.0009053]
[1724384386603,1.74921913,60706.0,60705.0,0.0009053]
[1724384387872,1.74655498,60706.0,60705.0,0.0009053]
[1724384388439,1.74755498,60706.0,60705.0,0.0009053]
[1724384388717,1.74921913,60706.0,60705.0,0.0009053]
[1724384389033,1.74655498,60706.0,60705.0,0.0009053]
[1724384389234,1.61912522,60706.0,60705.0,0.0009053]
[1724384389359,1.64102472,60706.0,60705.0,0.0009053]
[1724384389761,1.57892472,60706.0,60705.0,0.0009053]
[1724384390025,1.60476028,60706.0,60705.0,0.0009053]
[1724384390369,1.70331519,60706.0,60705.0,0.0009053]
[1724384391548,1.70413819,60706.0,60705.0,0.0009053]
[1724384393714,1.7041286,60706.0,60705.0,0.0009053]
[1724384395308,1.60558328,60706.0,60705.0,0.0009053]
[1724384395506,0.95029856,60706.0,60705.0,0.0009053]
[1724384395732,0.95029856,60706.0,60705.0,0.1410053]
[1724384395733,0.29138656,60706.0,60705.0,0.1410053]
[1724384395937,0.36529731,60706.0,60705.0,0.15521174]
[1724384396352,0.29138656,60706.0,60705.0,0.15521174]
[1724384396558,0.62084256,60706.0,60705.0,0.15521174]
[1724384397550,0.74363976,60706.0,60705.0,0.15521174]
[1724384398513,0.74364038,60706.0,60705.0,0.1410053]
[1724384398714,0.82246612,60706.0,60705.0,0.1410053]
[1724384398919,0.69927177,60706.0,60705.0,0.1410053]
[1724384399118,1.02872777,60706.0,60705.0,0.1410053]
[1724384399335,1.02872777,60706.0,60705.0,0.0009053]
[1724384400124,1.01872777,60706.0,60705.0,0.0009053]
[1724384402394,1.01872777,60706.0,60705.0,0.1397053]
[1724384402594,1.01872777,60706.0,60705.0,0.15378174]
[1724384402795,0.93990203,60706.0,60705.0,0.15378174]
[1724384403032,1.06309383,60706.0,60705.0,0.15378174]
[1724384403388,0.98575073,60706.0,60705.0,0.1397053]
[1724384403593,0.65629473,60706.0,60705.0,0.1397053]
[1724384403795,0.77950613,60706.0,60705.0,0.1397053]
[1724384404206,0.98575073,60706.0,60705.0,0.1397053]
[1724384406161,0.98800162,60706.0,60705.0,0.1397053]
[1724384407193,1.11122043,60706.0,60705.0,0.1397053]
[1724384407753,0.28758043,60706.0,60705.0,0.15381532]
[1724384407952,0.32908962,60706.0,60705.0,0.15381532]
[1724384408160,0.65854562,60706.0,60705.0,0.15381532]
[1724384409850,0.65854562,60706.0,60705.0,0.1397053]
[1724384410255,0.78176443,60706.0,60705.0,0.1397053]
[1724384410881,0.65921267,60706.0,60705.0,0.1397053]
[1724384411101,0.45299691,60706.0,60705.0,0.1397053]
[1724384411981,0.45299691,60706.0,60705.0,0.14004115]
[1724384412203,0.78245291,60706.0,60705.0,0.14004115]
[1724384412972,0.78245291,60706.0,60705.0,0.15415117]
[1724384413163,0.5696092,60706.0,60705.0,0.15415117]
[1724384413665,0.6696092,60706.0,60705.0,0.15415117]
[1724384414068,0.6696092,60706.0,60705.0,0.1397053]
[1724384415694,0.24029984,60706.0,60705.0,0.14004115]
[1724384417388,0.24029984,60706.0,60705.0,0.1397053]
[1724384419150,0.24034767,60706.0,60705.0,0.1397053]
[1724384419528,0.24034767,60706.0,60705.0,0.14004115]
[1724384419771,0.24034767,60706.0,60705.0,0.15415117]
[1724384420319,0.24032205,60706.0,60705.0,0.15415117]
[1724384420622,0.24032205,60706.0,60705.0,0.15381532]
[1724384421586,0.24032205,60706.0,60705.0,0.1397053]
[1724384422290,0.33890678,60706.0,60705.0,0.1397053]
[1724384424776,0.17417878,60706.0,60705.0,0.1397053]
[1724384424996,0.17417878,60706.0,60705.0,0.14004115]
[1724384425743,0.07559405,60706.0,60705.0,0.14004115]
[1724384426782,0.07559405,60706.0,60705.0,0.1397053]
[1724384427500,0.07559405,60706.0,60705.0,0.14004115]
[1724384429277,0.07594944,60706.0,60705.0,0.14004115]
[1724384429691,0.02665856,60706.0,60705.0,0.14004115]
[1724384430477,0.02665856,60706.0,60705.0,0.63423415]
[1724384430954,0.02665856,60706.0,60705.0,1.12769913]
[1724384431159,0.02665856,60706.0,60705.0,0.82123713]
[1724384431365,0.02665856,60706.0,60705.0,0.14004115]
[1724384431782,0.19138656,60706.0,60705.0,0.14004115]
[1724384431989,0.85129856,60706.0,60705.0,0.0009053]
[1724384432190,0.85329856,60706.0,60705.0,0.0009053]
[1724384432373,0.92623179,60706.0,60705.0,0.0009053]
[1724384433086,0.59677579,60706.0,60705.0,0.0009053]
[1724384433499,0.59477579,60706.0,60705.0,0.0009053]
[1724384433706,0.52084256,60706.0,60705.0,0.0019053]